[Event "Croatian-ch Youth U13 2022"]
[Site "Trogir"]
[Date "2022.06.26"]
[Round "7.2"]
[White "Mandaric, Duje"]
[Black "Poljan, Max"]
[Result "0-1"]
[ECO "B22"]
[WhiteElo "1333"]
[BlackElo "1618"]
[Annotator "NA RC"]
[PlyCount "120"]
[EventDate "2022.06.22"]
[EventType "swiss"]
[EventCountry "CRO"]
[SourceTitle "playchess.com"]
[Source "ChessBase"]
[SourceQuality "1"]
[TimeControl "5400+30"]

1. e4 {[%emt 0:00:03]} c5 {[%emt 0:00:02]} 2. c3 {[%emt 0:00:05]} Nf6 {[%emt 0:00:05]} 3. e5 {[%emt 0:00:13]} Nd5 {[%emt 0:00:03]} 4. d4 {[%emt 0:00:25]} cxd4 {[%emt 0:00:04]} 5. cxd4 {[%emt 0:00:07]} e6 {[%emt 0:00:06]} 6. f4 {[%emt 0:01:55]} d6 {[%emt 0:00:11]} 7. Nf3 {[%emt 0:00:54]} dxe5 {[%emt 0:01:52]} 8. dxe5 {[%emt 0:00:11]} Qb6 {[%emt 0:01:49]} 9. Qb3 {[%emt 0:02:37]} Bb4+ {[%emt 0:04:13]} 10. Nc3 {[%emt 0:02:55]} Nc6 {[%emt 0:17:07]} 11. Bd2 {[%emt 0:01:43]} Nd4 {[%emt 0:12:21]} 12. Nxd5 {[%emt 0:04:39]} Nxf3+ {[%emt 0:02:55]} 13. gxf3 {[%emt 0:00:27]} Bxd2+ {[%emt 0:03:37]} 14. Kxd2 {[%emt 0:00:40]} exd5 {[%emt 0:05:16]} 15. Qxb6 {[%emt 0:01:05]} axb6 {[%emt 0:00:05]} 16. Bd3 {[%emt 0:00:07]} Bd7 {[%emt 0:00:29]} 17. b3 {[%emt 0:01:41]} Ra3 {[%emt 0:02:13]} 18. Rhg1 {[%emt 0:00:52]} g6 {[%emt 0:00:51]} 19. Ke3 {[%emt 0:02:32]} Ke7 {[%emt 0:00:47]} 20. h4 {[%emt 0:04:46]} Rha8 {[%emt 0:01:08]} 21. Rg2 {[%emt 0:01:08]} Rxb3 {[%emt 0:00:43]} 22. axb3 {[%emt 0:01:55]} Rxa1 {[%emt 0:00:05]} 23. h5 {[%emt 0:00:55]} Ra3 {[%emt 0:05:18]} 24. hxg6 {[%emt 0:01:53]} hxg6 {[%emt 0:00:09]} 25. Rb2 {[%emt 0:00:44]} Ra1 {[%emt 0:10:59]} 26. Kd2 {[%emt 0:02:53]} Rh1 {[%emt 0:04:05]} 27. Ke3 {[%emt 0:03:11]} Rh4 {[%emt 0:01:41]} 28. Rc2 {[%emt 0:02:38]} Bc6 {[%emt 0:00:35]} 29. Rf2 {[%emt 0:01:12]} d4+ {[%emt 0:01:04]} 30. Kxd4 {[%emt 0:00:16]} Rxf4+ {[%emt 0:00:06]} 31. Ke3 {[%emt 0:00:20]} Rb4 {[%emt 0:00:32]} 32. Rb2 {[%emt 0:00:44]} Bd5 {[%emt 0:00:12]} 33. Bc2 {[%emt 0:00:59]} g5 {[%emt 0:00:08]} 34. Bd1 {[%emt 0:00:34]} Ke6 {[%emt 0:00:16]} 35. Re2 {[%emt 0:00:47]} Kxe5 {[%emt 0:03:24]} 36. Kd3+ {[%emt 0:01:07]} Kd6 {[%emt 0:01:23]} 37. Kc3 {[%emt 0:00:32]} Rf4 {[%emt 0:00:17]} 38. Rd2 {[%emt 0:00:42]} Kc6 {[%emt 0:02:32]} 39. Rd3 {[%emt 0:00:52]} f5 {[%emt 0:00:52]} 40. Re3 {[%emt 0:01:27]} g4 {[%emt 0:00:59]} 41. fxg4 {[%emt 0:00:36]} fxg4 {[%emt 0:00:09]} 42. Rg3 {[%emt 0:00:27]} Bf3 {[%emt 0:00:13]} 43. Bc2 {[%emt 0:00:10]} Kd5 {[%emt 0:00:46]} 44. Kd2 {[%emt 0:00:52]} Kd4 {[%emt 0:01:09]} 45. Bg6 {[%emt 0:00:37]} Ke5 {[%emt 0:01:08]} 46. Ke3 {[%emt 0:00:30]} Rb4 {[%emt 0:00:08]} 47. Bc2 {[%emt 0:00:15]} Kf6 {[%emt 0:00:33]} 48. Rg1 {[%emt 0:00:40]} Kg5 {[%emt 0:00:25]} 49. Rg3 {[%emt 0:00:55]} Kh4 {[%emt 0:00:46]} 50. Rg1 {[%emt 0:00:28]} Kh3 {[%emt 0:02:01]} 51. Kf2 {[%emt 0:01:31]} Kh2 {[%emt 0:00:42]} 52. Re1 {[%emt 0:01:09]} Rf4 {[%emt 0:01:17]} 53. Ke3 {[%emt 0:00:41]} Rf6 {[%emt 0:00:23]} 54. Rf1 {[%emt 0:01:05]} g3 {[%emt 0:02:31]} 55. Be4 {[%emt 0:01:49]} g2 {[%emt 0:00:27]} 56. Rf2 {[%emt 0:00:13]} Bxe4 {[%emt 0:00:43]} 57. Rxf6 {[%emt 0:00:33]} g1=Q+ {[%emt 0:00:06]} 58. Kxe4 {[%emt 0:00:21]} Qb1+ {[%emt 0:00:18]} 59. Ke3 {[%emt 0:00:16]} Qxb3+ {[%emt 0:00:29]} 60. Ke2 {[%emt 0:00:13]} Qb2+ {[%emt 0:00:05]} 0-1

[Event "Croatian-ch Youth U13 2022"]
[Site "Trogir"]
[Date "2022.06.26"]
[Round "7.3"]
[White "Pehar, Borna"]
[Black "Sosic, Zvan"]
[Result "1-0"]
[ECO "B53"]
[WhiteElo "1756"]
[BlackElo "1331"]
[Annotator "NA RC"]
[PlyCount "43"]
[EventDate "2022.06.22"]
[EventType "swiss"]
[EventCountry "CRO"]
[SourceTitle "playchess.com"]
[Source "ChessBase"]
[SourceQuality "1"]
[TimeControl "5400+30"]

1. e4 {[%emt 0:00:08]} c5 {[%emt 0:00:07]} 2. Nf3 {[%emt 0:00:06]} d6 {[%emt 0:00:03]} 3. d4 {[%emt 0:00:30]} cxd4 {[%emt 0:00:10]} 4. Qxd4 {[%emt 0:00:22]} Nc6 {[%emt 0:01:14]} 5. Bb5 {[%emt 0:00:11]} Bd7 {[%emt 0:00:49]} 6. Bxc6 {[%emt 0:00:45]} Bxc6 {[%emt 0:00:09]} 7. Nc3 {[%emt 0:00:43]} e5 {[%emt 0:02:51]} 8. Qd3 {[%emt 0:00:32]} h6 {[%emt 0:00:15]} 9. Be3 {[%emt 0:05:56]} Nf6 {[%emt 0:00:58]} 10. h3 {[%emt 0:01:06]} Be7 {[%emt 0:03:03]} 11. O-O {[%emt 0:04:42]} a6 {[%emt 0:03:28]} 12. a4 {[%emt 0:00:55]} Nxe4 {[%emt 0:11:30]} 13. Nxe4 {[%emt 0:00:26]} d5 {[%emt 0:00:12]} 14. Nxe5 {[%emt 0:00:57]} dxe4 {[%emt 0:00:20]} 15. Qc3 {[%emt 0:07:21]} Qd6 {[%emt 0:09:57]} 16. Rad1 {[%emt 0:03:09]} Qb4 {[%emt 0:03:41]} 17. Qxb4 {[%emt 0:00:42]} Bxb4 {[%emt 0:00:23]} 18. Nxc6 {[%emt 0:00:14]} bxc6 {[%emt 0:00:29]} 19. Rd4 {[%emt 0:00:10]} a5 {[%emt 0:06:11]} 20. c3 {[%emt 0:00:28]} Be7 {[%emt 0:04:39]} 21. Rxe4 {[%emt 0:00:23]} Rd8 {[%emt 0:00:02]} 22. Bc5 {[%emt 0:00:17]} 1-0

[Event "Croatian-ch Youth U13 2022"]
[Site "Trogir"]
[Date "2022.06.26"]
[Round "7.5"]
[White "Perdic, Arijan"]
[Black "Mimica, Matija"]
[Result "0-1"]
[ECO "D37"]
[WhiteElo "1149"]
[BlackElo "1421"]
[Annotator "NA RC"]
[PlyCount "72"]
[EventDate "2022.06.22"]
[EventType "swiss"]
[EventCountry "CRO"]
[SourceTitle "playchess.com"]
[Source "ChessBase"]
[SourceQuality "1"]
[TimeControl "5400+30"]

1. d4 {[%emt 0:00:03]} d5 {[%emt 0:00:13]} 2. c4 {[%emt 0:00:12]} e6 {[%emt 0:00:49]} 3. Nc3 {[%emt 0:00:24]} Nf6 {[%emt 0:00:50]} 4. Nf3 {[%emt 0:00:42]} Be7 {[%emt 0:01:11]} 5. Bf4 {[%emt 0:00:48]} O-O {[%emt 0:01:30]} 6. h3 {[%emt 0:00:33]} c6 {[%emt 0:04:48]} 7. e3 {[%emt 0:01:29]} Nbd7 {[%emt 0:00:50]} 8. a3 {[%emt 0:00:56]} dxc4 {[%emt 0:05:36]} 9. Bxc4 {[%emt 0:00:51]} Nb6 {[%emt 0:00:46]} 10. Bd3 {[%emt 0:02:32]} c5 {[%emt 0:04:40]} 11. O-O {[%emt 0:03:57]} cxd4 {[%emt 0:01:08]} 12. Nxd4 {[%emt 0:02:22]} Nfd5 {[%emt 0:01:13]} 13. Nxd5 {[%emt 0:02:26]} Nxd5 {[%emt 0:01:13]} 14. Bh2 {[%emt 0:01:50]} Bd6 {[%emt 0:10:33]} 15. Qc2 {[%emt 0:10:56]} Bxh2+ {[%emt 0:02:14]} 16. Kxh2 {[%emt 0:00:06]} g6 {[%emt 0:00:21]} 17. Rac1 {[%emt 0:02:35]} Qd6+ {[%emt 0:00:19]} 18. g3 {[%emt 0:01:32]} Bd7 {[%emt 0:00:35]} 19. h4 {[%emt 0:02:21]} Rac8 {[%emt 0:09:58]} 20. Qb1 {[%emt 0:02:05]} Nf6 {[%emt 0:03:00]} 21. Rxc8 {[%emt 0:04:03]} Rxc8 {[%emt 0:00:44]} 22. Rd1 {[%emt 0:00:37]} Ng4+ {[%emt 0:00:24]} 23. Kg2 {[%emt 0:01:09]} e5 {[%emt 0:09:12]} 24. Nf3 {[%emt 0:02:32]} Bc6 {[%emt 0:02:58]} 25. Bf5 {[%emt 0:07:14]} Qxd1 {[%emt 0:06:30]} 26. Qxd1 {[%emt 0:00:31]} gxf5 {[%emt 0:00:06]} 27. Kg1 {[%emt 0:02:27]} Bxf3 {[%emt 0:03:27]} 28. Qxf3 {[%emt 0:00:24]} Rc1+ {[%emt 0:00:08]} 29. Kg2 {[%emt 0:00:32]} Rf1 {[%emt 0:02:31]} 30. Qxb7 {[%emt 0:07:43]} Rxf2+ {[%emt 0:00:06]} 31. Kg1 {[%emt 0:00:13]} Re2 {[%emt 0:00:24]} 32. Qc8+ {[%emt 0:00:24]} Kg7 {[%emt 0:00:18]} 33. Qxf5 {[%emt 0:00:18]} Re1+ {[%emt 0:00:11]} 34. Qf1 {[%emt 0:00:40]} Rxf1+ {[%emt 0:00:09]} 35. Kxf1 {[%emt 0:00:06]} Nxe3+ {[%emt 0:00:08]} 36. Ke2 {[%emt 0:00:15]} Nc4 {[%emt 0:00:06]} 0-1

[Event "Croatian-ch Youth U13 2022"]
[Site "Trogir"]
[Date "2022.06.26"]
[Round "7.6"]
[White "Radic, Borna"]
[Black "Kucelj, Kevin"]
[Result "0-1"]
[ECO "E48"]
[WhiteElo "1289"]
[BlackElo "1398"]
[Annotator "NA RC"]
[PlyCount "70"]
[EventDate "2022.06.22"]
[EventType "swiss"]
[EventCountry "CRO"]
[SourceTitle "playchess.com"]
[Source "ChessBase"]
[SourceQuality "1"]
[TimeControl "5400+30"]

1. d4 {[%emt 0:00:02]} Nf6 {[%emt 0:00:03]} 2. c4 {[%emt 0:00:07]} e6 {[%emt 0:00:02]} 3. Nc3 {[%emt 0:00:07]} Bb4 {[%emt 0:00:02]} 4. e3 {[%emt 0:00:01]} O-O {[%emt 0:00:38]} 5. Bd3 {[%emt 0:01:20]} d5 {[%emt 0:01:17]} 6. cxd5 {[%emt 0:06:37]} exd5 {[%emt 0:00:08]} 7. Nge2 {[%emt 0:00:16]} c6 {[%emt 0:03:32]} 8. O-O {[%emt 0:02:05]} Qc7 {[%emt 0:01:19]} 9. Ng3 {[%emt 0:03:16]} Bd6 {[%emt 0:01:41]} 10. Be2 {[%emt 0:03:52]} Be6 {[%emt 0:05:15]} 11. a3 {[%emt 0:03:32]} a5 {[%emt 0:02:26]} 12. Bd2 {[%emt 0:03:22]} Nbd7 {[%emt 0:01:55]} 13. Rc1 {[%emt 0:03:12]} Qb8 {[%emt 0:05:07]} 14. a4 {[%emt 0:04:10]} Rc8 {[%emt 0:04:36]} 15. Qb3 {[%emt 0:02:50]} Bxg3 {[%emt 0:07:05]} 16. hxg3 {[%emt 0:00:08]} Qd6 {[%emt 0:02:31]} 17. Bd3 {[%emt 0:14:25]} h5 {[%emt 0:12:36]} 18. Be2 {[%emt 0:04:15]} Bg4 {[%emt 0:02:00]} 19. Rfe1 {[%emt 0:01:28]} Kh7 {[%emt 0:05:19]} 20. Bxg4 {[%emt 0:01:29]} hxg4 {[%emt 0:00:21]} 21. Qc2+ {[%emt 0:00:45]} g6 {[%emt 0:00:49]} 22. Kh2 {[%emt 0:05:18]} Rh8 {[%emt 0:01:24]} 23. Rh1 {[%emt 0:00:54]} Kg7+ {[%emt 0:00:17]} 24. Kg1 {[%emt 0:00:07]} Rxh1+ {[%emt 0:00:03]} 25. Kxh1 {[%emt 0:00:01]} Rh8+ {[%emt 0:00:31]} 26. Kg1 {[%emt 0:00:07]} Nf8 {[%emt 0:11:35]} 27. Ne2 {[%emt 0:02:29]} Ne4 {[%emt 0:02:07]} 28. Bxa5 {[%emt 0:07:41]} Qf6 {[%emt 0:00:45]} 29. Nf4 {[%emt 0:00:57]} g5 {[%emt 0:00:13]} 30. Nd3 {[%emt 0:00:11]} Qh6 {[%emt 0:00:24]} 31. Kf1 {[%emt 0:01:03]} Qh1+ {[%emt 0:00:29]} 32. Ke2 {[%emt 0:00:11]} Qxg2 {[%emt 0:00:14]} 33. Be1 {[%emt 0:00:36]} Nxg3+ {[%emt 0:00:26]} 34. Kd1 {[%emt 0:00:19]} Qf3+ {[%emt 0:00:13]} 35. Kd2 {[%emt 0:00:10]} Ne4# {[%emt 0:00:26]} 0-1

[Event "Croatian-ch Youth U13 2022"]
[Site "Trogir"]
[Date "2022.06.26"]
[Round "7.7"]
[White "Solin, Borna"]
[Black "Horvat, Ivan"]
[Result "0-1"]
[ECO "A49"]
[WhiteElo "1324"]
[BlackElo "1290"]
[Annotator "NA RC"]
[PlyCount "128"]
[EventDate "2022.06.22"]
[EventType "swiss"]
[EventCountry "CRO"]
[SourceTitle "playchess.com"]
[Source "ChessBase"]
[SourceQuality "1"]
[TimeControl "5400+30"]

1. d4 {[%emt 0:00:06]} Nf6 {[%emt 0:00:06]} 2. g3 {[%emt 0:00:08]} g6 {[%emt 0:00:06]} 3. Bg2 {[%emt 0:00:09]} Bg7 {[%emt 0:00:04]} 4. Nf3 {[%emt 0:00:18]} O-O {[%emt 0:00:13]} 5. O-O {[%emt 0:00:12]} d6 {[%emt 0:00:28]} 6. e3 {[%emt 0:00:18]} Re8 {[%emt 0:00:12]} 7. b3 {[%emt 0:00:23]} e5 {[%emt 0:01:16]} 8. dxe5 {[%emt 0:05:43]} dxe5 {[%emt 0:00:12]} 9. Bb2 {[%emt 0:02:15]} Qxd1 {[%emt 0:01:44]} 10. Rxd1 {[%emt 0:00:08]} Bf5 {[%emt 0:10:01]} 11. Bxe5 {[%emt 0:12:34]} Bxc2 {[%emt 0:01:23]} 12. Rc1 {[%emt 0:01:05]} Bxb1 {[%emt 0:03:17]} 13. Raxb1 {[%emt 0:00:13]} c6 {[%emt 0:00:35]} 14. Bxf6 {[%emt 0:13:03]} Bxf6 {[%emt 0:00:26]} 15. Rd1 {[%emt 0:00:14]} Na6 {[%emt 0:01:33]} 16. Rd6 {[%emt 0:15:08]} Be7 {[%emt 0:05:11]} 17. Rd2 {[%emt 0:08:18]} Rad8 {[%emt 0:06:42]} 18. Rbd1 {[%emt 0:01:05]} Nb4 {[%emt 0:04:22]} 19. a3 {[%emt 0:05:30]} Nd5 {[%emt 0:00:40]} 20. a4 {[%emt 0:02:22]} Nc3 {[%emt 0:01:45]} 21. Rxd8 {[%emt 0:00:50]} Rxd8 {[%emt 0:00:52]} 22. Rxd8+ {[%emt 0:00:11]} Bxd8 {[%emt 0:00:01]} 23. Nd4 {[%emt 0:01:14]} Bf6 {[%emt 0:04:52]} 24. Nc2 {[%emt 0:03:08]} Ne2+ {[%emt 0:02:02]} 25. Kf1 {[%emt 0:00:19]} Nc1 {[%emt 0:00:06]} 26. b4 {[%emt 0:00:13]} Bc3 {[%emt 0:00:17]} 27. Bf3 {[%emt 0:07:39]} Nd3 {[%emt 0:00:58]} 28. b5 {[%emt 0:00:46]} cxb5 {[%emt 0:00:21]} 29. axb5 {[%emt 0:03:19]} Nc5 {[%emt 0:00:25]} 30. Nd4 {[%emt 0:00:59]} a5 {[%emt 0:02:32]} 31. bxa6 {[%emt 0:01:39]} bxa6 {[%emt 0:00:30]} 32. Bd5 {[%emt 0:00:44]} Kf8 {[%emt 0:02:22]} 33. Ke2 {[%emt 0:00:29]} Ke7 {[%emt 0:02:43]} 34. Kd1 {[%emt 0:01:55]} Bxd4 {[%emt 0:00:16]} 35. exd4 {[%emt 0:00:11]} Ne6 {[%emt 0:00:11]} 36. Bc4 {[%emt 0:01:28]} a5 {[%emt 0:00:26]} 37. d5 {[%emt 0:02:16]} Nc7 {[%emt 0:00:25]} 38. d6+ {[%emt 0:00:20]} Kxd6 {[%emt 0:00:16]} 39. Bxf7 {[%emt 0:00:04]} g5 {[%emt 0:00:34]} 40. Ke2 {[%emt 0:00:38]} a4 {[%emt 0:00:30]} 41. Ba2 {[%emt 0:00:24]} Nd5 {[%emt 0:00:39]} 42. Bc4 {[%emt 0:00:50]} Kc5 {[%emt 0:00:14]} 43. Kd3 {[%emt 0:00:06]} g4 {[%emt 0:01:11]} 44. Bxd5 {[%emt 0:00:57]} Kxd5 {[%emt 0:00:01]} 45. Kc3 {[%emt 0:00:07]} Ke4 {[%emt 0:00:24]} 46. Kb4 {[%emt 0:00:09]} Kf3 {[%emt 0:00:16]} 47. Kxa4 {[%emt 0:00:03]} Kxf2 {[%emt 0:00:09]} 48. Kb4 {[%emt 0:00:05]} Kg2 {[%emt 0:00:07]} 49. Kc3 {[%emt 0:00:04]} Kxh2 {[%emt 0:00:15]} 50. Kd2 {[%emt 0:00:03]} Kxg3 {[%emt 0:00:15]} 51. Ke1 {[%emt 0:00:04]} Kg2 {[%emt 0:00:13]} 52. Ke2 {[%emt 0:00:07]} h5 {[%emt 0:00:16]} 53. Ke1 {[%emt 0:00:07]} h4 {[%emt 0:00:06]} 54. Ke2 {[%emt 0:00:03]} h3 {[%emt 0:00:06]} 55. Ke1 {[%emt 0:00:03]} h2 {[%emt 0:00:06]} 56. Ke2 {[%emt 0:00:26]} h1=Q {[%emt 0:00:07]} 57. Ke3 {[%emt 0:00:02]} Qe1+ {[%emt 0:00:16]} 58. Kd3 {[%emt 0:00:07]} Kf3 {[%emt 0:00:19]} 59. Kc2 {[%emt 0:00:06]} g3 {[%emt 0:00:09]} 60. Kb2 {[%emt 0:00:36]} g2 {[%emt 0:00:13]} 61. Kc2 {[%emt 0:00:08]} g1=Q {[%emt 0:00:11]} 62. Kb2 {[%emt 0:00:11]} Qc1+ {[%emt 0:00:11]} 63. Kb3 {[%emt 0:00:08]} Qb6+ {[%emt 0:00:10]} 64. Ka4 {[%emt 0:00:07]} Qa1# {[%emt 0:00:14]} 0-1

[Event "Croatian-ch Youth U13 2022"]
[Site "Trogir"]
[Date "2022.06.26"]
[Round "7.8"]
[White "Miletic, Ivan"]
[Black "Pecotic, Rudi"]
[Result "1-0"]
[ECO "C54"]
[WhiteElo "1461"]
[BlackElo "1156"]
[Annotator "NA RC"]
[PlyCount "83"]
[EventDate "2022.06.22"]
[EventType "swiss"]
[EventCountry "CRO"]
[SourceTitle "playchess.com"]
[Source "ChessBase"]
[SourceQuality "1"]
[TimeControl "5400+30"]

1. e4 {[%emt 0:00:12]} e5 {[%emt 0:00:15]} 2. Nf3 {[%emt 0:00:24]} Nc6 {[%emt 0:00:27]} 3. Bc4 {[%emt 0:00:19]} Bc5 {[%emt 0:00:47]} 4. d3 {[%emt 0:00:39]} Nf6 {[%emt 0:00:28]} 5. O-O {[%emt 0:00:12]} O-O {[%emt 0:00:26]} 6. c3 {[%emt 0:00:48]} d5 {[%emt 0:03:09]} 7. exd5 {[%emt 0:03:10]} Nxd5 {[%emt 0:00:48]} 8. Re1 {[%emt 0:01:54]} Nb6 {[%emt 0:03:42]} 9. Nxe5 {[%emt 0:06:19]} Nxe5 {[%emt 0:00:55]} 10. Rxe5 {[%emt 0:00:13]} Qd6 {[%emt 0:01:41]} 11. Re1 {[%emt 0:01:30]} Nxc4 {[%emt 0:00:49]} 12. dxc4 {[%emt 0:00:21]} Qxd1 {[%emt 0:04:29]} 13. Rxd1 {[%emt 0:00:12]} Bg4 {[%emt 0:02:15]} 14. Rd5 {[%emt 0:05:28]} Bb6 {[%emt 0:02:21]} 15. c5 {[%emt 0:01:03]} Rfe8 {[%emt 0:01:54]} 16. Bd2 {[%emt 0:01:54]} Be6 {[%emt 0:00:16]} 17. Re5 {[%emt 0:02:58]} f6 {[%emt 0:00:52]} 18. Re2 {[%emt 0:04:18]} Bxc5 {[%emt 0:01:13]} 19. b4 {[%emt 0:01:04]} Bb6 {[%emt 0:00:53]} 20. a4 {[%emt 0:00:43]} a5 {[%emt 0:00:34]} 21. Be3 {[%emt 0:07:20]} Bc4 {[%emt 0:02:41]} 22. Re1 {[%emt 0:00:24]} Bxe3 {[%emt 0:00:34]} 23. Rxe3 {[%emt 0:00:19]} Rxe3 {[%emt 0:00:07]} 24. fxe3 {[%emt 0:00:08]} axb4 {[%emt 0:03:24]} 25. cxb4 {[%emt 0:00:25]} Rd8 {[%emt 0:02:36]} 26. Na3 {[%emt 0:01:15]} Bb3 {[%emt 0:06:51]} 27. a5 {[%emt 0:02:00]} c6 {[%emt 0:00:58]} 28. Rc1 {[%emt 0:01:33]} Rd1+ {[%emt 0:03:22]} 29. Rxd1 {[%emt 0:00:09]} Bxd1 {[%emt 0:00:10]} 30. Nc4 {[%emt 0:00:10]} Be2 {[%emt 0:02:06]} 31. Nd6 {[%emt 0:01:18]} Ba6 {[%emt 0:00:10]} 32. Kf2 {[%emt 0:00:35]} g6 {[%emt 0:00:24]} 33. Kf3 {[%emt 0:00:17]} Kf8 {[%emt 0:00:03]} 34. Ne4 {[%emt 0:01:36]} Ke7 {[%emt 0:00:32]} 35. Nc5 {[%emt 0:00:22]} Kd6 {[%emt 0:00:56]} 36. Ke4 {[%emt 0:00:41]} h6 {[%emt 0:01:01]} 37. g4 {[%emt 0:02:59]} Ke7 {[%emt 0:01:39]} 38. h4 {[%emt 0:03:27]} Be2 {[%emt 0:04:31]} 39. Nxb7 {[%emt 0:07:58]} Bxg4 {[%emt 0:00:32]} 40. a6 {[%emt 0:00:03]} Bc8 41. Nc5 {[%emt 0:00:06]} Bg4 {[%emt 0:00:03]} 42. Nb7 {[%emt 0:00:07]} 1-0

[Event "Croatian-ch Youth U13 2022"]
[Site "Trogir"]
[Date "2022.06.26"]
[Round "7.9"]
[White "Hajdinic, Ema"]
[Black "Car, Lana"]
[Result "1-0"]
[ECO "C62"]
[WhiteElo "1535"]
[BlackElo "1189"]
[Annotator "NA RC"]
[PlyCount "67"]
[EventDate "2022.06.22"]
[EventType "swiss"]
[EventCountry "CRO"]
[SourceTitle "playchess.com"]
[Source "ChessBase"]
[SourceQuality "1"]
[TimeControl "5400+30"]

1. e4 {[%emt 0:00:02]} e5 {[%emt 0:00:08]} 2. Nf3 {[%emt 0:00:03]} Nc6 {[%emt 0:00:07]} 3. Nc3 {[%emt 0:00:03]} Nf6 {[%emt 0:00:18]} 4. Bb5 {[%emt 0:00:04]} d6 {[%emt 0:00:15]} 5. d4 {[%emt 0:00:05]} exd4 {[%emt 0:00:14]} 6. Nxd4 {[%emt 0:00:03]} Bd7 {[%emt 0:00:38]} 7. O-O {[%emt 0:00:24]} Nxd4 {[%emt 0:01:01]} 8. Bxd7+ {[%emt 0:00:20]} Qxd7 {[%emt 0:00:19]} 9. Qxd4 {[%emt 0:00:05]} Be7 {[%emt 0:01:01]} 10. Bg5 {[%emt 0:00:16]} c6 {[%emt 0:05:25]} 11. Rad1 {[%emt 0:02:25]} O-O {[%emt 0:01:14]} 12. Bxf6 {[%emt 0:02:58]} gxf6 {[%emt 0:00:34]} 13. f4 {[%emt 0:03:04]} f5 {[%emt 0:01:35]} 14. Rf3 {[%emt 0:01:04]} f6 {[%emt 0:01:08]} 15. e5 {[%emt 0:02:09]} d5 {[%emt 0:02:20]} 16. Re1 {[%emt 0:02:15]} Qe6 {[%emt 0:01:40]} 17. Kf1 {[%emt 0:02:30]} b6 {[%emt 0:02:32]} 18. Qd1 {[%emt 0:05:29]} d4 {[%emt 0:07:30]} 19. Rg3+ {[%emt 0:01:52]} Kh8 {[%emt 0:01:07]} 20. Qxd4 {[%emt 0:02:15]} Bc5 {[%emt 0:00:51]} 21. Qd1 {[%emt 0:00:53]} Rad8 {[%emt 0:00:30]} 22. Rd3 {[%emt 0:02:05]} Qc4 {[%emt 0:02:11]} 23. Ne2 {[%emt 0:01:52]} Rxd3 {[%emt 0:02:22]} 24. Qxd3 {[%emt 0:00:29]} Qxd3 {[%emt 0:03:25]} 25. cxd3 {[%emt 0:00:05]} fxe5 {[%emt 0:00:21]} 26. fxe5 {[%emt 0:00:04]} Be3 {[%emt 0:01:43]} 27. g3 {[%emt 0:01:29]} f4 {[%emt 0:00:21]} 28. gxf4 {[%emt 0:00:07]} Bxf4 {[%emt 0:00:07]} 29. Nxf4 {[%emt 0:00:05]} Rxf4+ {[%emt 0:00:05]} 30. Kg2 {[%emt 0:00:06]} Kg8 {[%emt 0:01:02]} 31. Rf1 {[%emt 0:01:41]} Rd4 {[%emt 0:02:01]} 32. e6 {[%emt 0:01:01]} Rxd3 {[%emt 0:00:58]} 33. e7 {[%emt 0:00:10]} Rd2+ {[%emt 0:00:29]} 34. Kg1 {[%emt 0:00:30]} 1-0

[Event "Croatian-ch Youth U13 2022"]
[Site "Trogir"]
[Date "2022.06.26"]
[Round "7.10"]
[White "Zagar, Lara Marija"]
[Black "Zagorac, Lara"]
[Result "1/2-1/2"]
[ECO "D11"]
[WhiteElo "1272"]
[BlackElo "1482"]
[Annotator "NA RC"]
[PlyCount "133"]
[EventDate "2022.06.22"]
[EventType "swiss"]
[EventCountry "CRO"]
[SourceTitle "playchess.com"]
[Source "ChessBase"]
[SourceQuality "1"]
[TimeControl "5400+30"]

1. Nf3 {[%emt 0:00:01]} Nf6 {[%emt 0:00:09]} 2. d4 {[%emt 0:00:06]} d5 {[%emt 0:00:13]} 3. g3 {[%emt 0:00:08]} g6 {[%emt 0:01:28]} 4. c4 {[%emt 0:00:16]} c6 {[%emt 0:03:28]} 5. Qc2 {[%emt 0:01:06]} Bg7 {[%emt 0:05:24]} 6. Bg2 {[%emt 0:01:04]} O-O {[%emt 0:02:10]} 7. O-O {[%emt 0:01:38]} Nbd7 {[%emt 0:14:47]} 8. Bf4 {[%emt 0:08:46]} Nh5 {[%emt 0:05:32]} 9. Bc1 {[%emt 0:01:34]} Nb6 {[%emt 0:04:03]} 10. Nbd2 {[%emt 0:08:31]} h6 {[%emt 0:11:27]} 11. e3 {[%emt 0:05:47]} Re8 {[%emt 0:07:43]} 12. b3 {[%emt 0:03:26]} Bf5 {[%emt 0:03:52]} 13. Qc3 {[%emt 0:06:00]} Nf6 {[%emt 0:03:31]} 14. Bb2 {[%emt 0:08:23]} Ne4 {[%emt 0:03:59]} 15. Nxe4 {[%emt 0:04:16]} Bxe4 {[%emt 0:00:47]} 16. Nd2 {[%emt 0:00:44]} Bxg2 {[%emt 0:00:18]} 17. Kxg2 {[%emt 0:00:08]} e6 {[%emt 0:01:46]} 18. Rfd1 {[%emt 0:06:56]} f5 {[%emt 0:04:20]} 19. f3 {[%emt 0:04:19]} Nd7 {[%emt 0:03:49]} 20. e4 {[%emt 0:01:26]} Nf6 {[%emt 0:02:26]} 21. exf5 {[%emt 0:01:08]} exf5 {[%emt 0:00:17]} 22. Re1 {[%emt 0:00:34]} Qd7 {[%emt 0:01:10]} 23. Nf1 {[%emt 0:02:56]} Nh5 {[%emt 0:01:53]} 24. c5 {[%emt 0:01:40]} f4 {[%emt 0:00:43]} 25. g4 {[%emt 0:00:36]} Nf6 {[%emt 0:00:13]} 26. Rxe8+ {[%emt 0:00:36]} Rxe8 {[%emt 0:00:16]} 27. Re1 {[%emt 0:00:37]} g5 {[%emt 0:01:08]} 28. h3 {[%emt 0:01:06]} Re6 {[%emt 0:01:08]} 29. Rxe6 {[%emt 0:01:52]} Qxe6 {[%emt 0:00:01]} 30. Qd2 {[%emt 0:00:22]} b6 {[%emt 0:01:07]} 31. b4 {[%emt 0:01:30]} Nd7 {[%emt 0:00:41]} 32. Kf2 {[%emt 0:00:52]} Qf6 {[%emt 0:01:05]} 33. Qe2 {[%emt 0:00:43]} Kf7 {[%emt 0:00:26]} 34. a3 {[%emt 0:05:03]} bxc5 {[%emt 0:00:59]} 35. bxc5 {[%emt 0:00:19]} Nxc5 {[%emt 0:01:14]} 36. Qc2 {[%emt 0:02:38]} Nd7 {[%emt 0:00:29]} 37. Qa4 {[%emt 0:02:34]} Bf8 {[%emt 0:03:12]} 38. Qxa7 {[%emt 0:00:25]} Qe7 {[%emt 0:00:36]} 39. Qb7 {[%emt 0:00:45]} Qd6 {[%emt 0:01:26]} 40. a4 {[%emt 0:01:00]} Ke7 {[%emt 0:02:10]} 41. a5 {[%emt 0:00:27]} Qb8 {[%emt 0:01:01]} 42. Ba3+ {[%emt 0:00:37]} Ke8 {[%emt 0:00:12]} 43. Qxb8+ {[%emt 0:01:29]} Nxb8 {[%emt 0:00:01]} 44. Bxf8 {[%emt 0:00:10]} Kxf8 {[%emt 0:00:03]} 45. Ke2 {[%emt 0:00:13]} Ke7 {[%emt 0:00:07]} 46. Kd3 {[%emt 0:00:07]} Kd7 {[%emt 0:00:26]} 47. Kc3 {[%emt 0:00:24]} Na6 {[%emt 0:01:31]} 48. Nd2 {[%emt 0:00:27]} Kc7 {[%emt 0:00:59]} 49. Nb3 {[%emt 0:00:26]} Kb7 {[%emt 0:02:53]} 50. Nc1 {[%emt 0:01:41]} Nc7 {[%emt 0:01:07]} 51. Kb4 {[%emt 0:01:55]} Na6+ {[%emt 0:00:36]} 52. Kc3 {[%emt 0:00:19]} Nc7 {[%emt 0:00:07]} 53. Kb4 {[%emt 0:00:28]} Na6+ {[%emt 0:00:12]} 54. Kc3 {[%emt 0:00:22]} Nc7 {[%emt 0:00:14]} 55. Kb4 {[%emt 0:01:21]} Na6+ {[%emt 0:03:38]} 56. Kc3 {[%emt 0:01:09]} Kc7 {[%emt 0:01:10]} 57. Kb3 {[%emt 0:00:42]} Kd6 {[%emt 0:00:44]} 58. Kc3 {[%emt 0:01:33]} c5 {[%emt 0:00:20]} 59. dxc5+ {[%emt 0:00:23]} Kxc5 {[%emt 0:00:11]} 60. Nd3+ {[%emt 0:00:45]} Kb5 {[%emt 0:00:26]} 61. Kd4 {[%emt 0:01:10]} Kxa5 {[%emt 0:00:45]} 62. Kxd5 {[%emt 0:00:11]} Nb4+ {[%emt 0:00:33]} 63. Nxb4 {[%emt 0:00:12]} Kxb4 {[%emt 0:00:01]} 64. Kd4 {[%emt 0:00:13]} Kb3 {[%emt 0:00:31]} 65. Kd3 {[%emt 0:00:06]} Kb2 {[%emt 0:01:03]} 66. Kd2 {[%emt 0:00:08]} Ka3 {[%emt 0:00:55]} 67. Kc3 {[%emt 0:00:06]} 1/2-1/2